[Event "European Women Blitz-ch 2024"]
[Site "Monaco"]
[Date "2025.01.10"]
[Round "10.2"]
[White "Roebers, Eline"]
[Black "Ushenina, Anna"]
[Result "1-0"]
[Annotator "TA"]
[ECO "B40"]
[WhiteElo "2381"]
[BlackElo "2418"]
[PlyCount "72"]
[EventDate "2025.01.06"]
[EventType "swiss"]
[EventCountry "MNC"]
[SourceTitle "playchess.com"]
[Source "ChessBase"]
[SourceQuality "1"]
[TimeControl "180+2"]

{[%evp 9,72,18,68,60,66,58,63,48,59,43,72,72,79,45,78,54,35,40,104,48,38,53,82,79,167,162,158,175,177,144,122,142,146,104,109,109,115,104,116,112,264,260,385,394,472,462,475,197,391,417,879,843,905,862,904,881,944,491,878,886,789,731,1851,1692,29988]} 1. e4 {[%emt 0:00:01]} c5 {[%emt 0:00:01]} 2. Nf3 {[%emt 0:00:01]} e6 {[%emt 0:00:01]} 3. Be2 {[%emt 0:00:01]} a6 {[%emt 0:00:03]} 4. O-O {[%emt 0:00:05]} Nc6 {[%emt 0:00:06]} 5. c4 {[%emt 0:00:02]} Nge7 {[%emt 0:00:11]} ({Black should play} 5... e5 $11) 6. d4 $14 {[%emt 0:00:03]} cxd4 {[%emt 0:00:02]} 7. Nxd4 {[%emt 0:00:00]} Nxd4 {[%emt 0:00:01]} 8. Qxd4 {[%emt 0:00:01]} Nc6 {[%emt 0:00:01] Inhibits f4.} 9. Qe3 {[%emt 0:00:10]} Be7 {[%emt 0:00:08]} 10. Nc3 {[%emt 0:00:01]} O-O {[%emt 0:00:02]} 11. Qg3 {[%emt 0:00:05]} d6 {[%emt 0:00:10]} 12. Bh6 {[%emt 0:00:46][%csl Gh6][%cal Rg3g7]} Bf6 {[%emt 0:00:04]} 13. Rad1 {[%emt 0:00:01]} Kh8 {[%emt 0:00:19] [#]} (13... Nd4 $14) 14. Bf4 {[%emt 0:00:09]} (14. Rxd6 Qe7 15. Bf4 Bxc3 (15... e5 16. Rxf6 Qxf6 17. Be3 $17) 16. Qxc3 e5 17. Rxc6 bxc6 18. Bxe5 (18. Qxe5 Qxe5 19. Bxe5 Re8 $11) 18... f6) ({Better is} 14. Be3 $1 $16) 14... e5 {[%emt 0:00:05]} 15. Be3 {[%emt 0:00:04]} Bh4 {[%emt 0:00:20]} 16. Qf3 {[%emt 0:00:01]} Bf6 {[%emt 0:00:16]} (16... Be6 $16) 17. Nd5 $18 {[%emt 0:00:06]} Bg5 {[%emt 0:00:10] [#]} 18. Bb6 $1 {[%emt 0:00:09]} Qd7 {[%emt 0:00:05]} 19. Qg3 {[%emt 0:00:23]} Bd8 {[%emt 0:00:07]} 20. Be3 {[%emt 0:00:01]} Qe8 {[%emt 0:00:11]} 21. f4 {[%emt 0:00:10]} Be6 {[%emt 0:00:07]} 22. f5 {[%emt 0:00:07]} Bxd5 {[%emt 0:00:06]} 23. Rxd5 {[%emt 0:00:01]} Be7 {[%emt 0:00:06]} 24. Qg4 {[%emt 0:00:22] White has more active pieces.} Nb4 $2 {[%emt 0:00:27]} (24... Nd4 $16) 25. Rd2 {[%emt 0:00:12]} Nxa2 {[%emt 0:00:09]} (25... Rg8 26. Rf3 Qf8) 26. Rf3 {[%emt 0:00:01]} f6 {[%emt 0:00:22]} 27. Rh3 {[%emt 0:00:01] Black is weak on the light squares} Qf7 {[%emt 0:00:05]} 28. Rh5 $40 {[%emt 0:00:17][%mdl 128] Black is in trouble.} (28. Qh4 $142 {[%csl Gh3][%cal Rh4h7]} g6 29. fxg6 Qxg6 30. c5) 28... Nb4 $2 {[%emt 0:00:06]} (28... b5 {might work better.} 29. cxb5 axb5 30. Bxb5 d5 31. exd5 (31. Rxd5 Rfc8 $18) 31... Bb4) 29. Qh3 {[%emt 0:00:01]} g6 {[%emt 0:00:02]} (29... Qg8 $142 30. Rh4 Rfc8) 30. fxg6 {[%emt 0:00:03]} Qxg6 {[%emt 0:00:01]} 31. Bg4 {[%emt 0:00:09][%cal Be2g4,Bg4f5,Bf5e6][%mdl 32] Intending Bf5 and mate.} Rf7 {[%emt 0:00:07]} 32. Bf5 {[%emt 0:00:02]} Qg8 {[%emt 0:00:02]} 33. Be6 {[%emt 0:00:01][%cal Od2f2] A strong pair of Bishops.} Nc6 {[%emt 0:00:02]} (33... Re8 $142 34. Qf5 (34. Bxf7 Qxf7 35. b3 b5 $18) 34... Bd8 35. Bxf7 Qxf7) 34. Rf2 {[%emt 0:00:15][%cal Of2f3] Strongly threatening Rf3!.} Raf8 {[%emt 0:00:01]} 35. Rff5 {[%emt 0:00:05]} Qg6 {[%emt 0:00:03]} 36. Rh6 {[%emt 0:00:07]} Qg8 {[%emt 0:00:05]} 1-0

[Event "European Women Blitz-ch 2024"]
[Site "Monaco"]
[Date "2025.01.10"]
[Round "10.3"]
[White "Tsolakidou, Stavroula"]
[Black "Kulon, Klaudia"]
[Result "1-0"]
[Annotator "TA"]
[ECO "C45"]
[WhiteElo "2451"]
[BlackElo "2393"]
[PlyCount "125"]
[EventDate "2025.01.06"]
[EventType "swiss"]
[EventCountry "MNC"]
[SourceTitle "playchess.com"]
[Source "ChessBase"]
[SourceQuality "1"]
[TimeControl "180+2"]

{[%evp 10,125,1,-35,3,16,12,7,8,9,3,19,52,45,38,55,137,137,128,75,137,53,130,126,139,134,189,127,129,125,143,110,154,148,147,109,118,115,199,156,186,162,214,167,179,179,242,233,292,293,363,350,368,340,368,320,390,337,368,356,466,412,595,606,645,547,562,569,568,500,445,442,916,916,916,916,1032,960,895,792,29989,1283,1274,1274,1194,1159,1274,536,1274,1194,5102,915,5414,4983,29964,29965,29968,29970,29973,29974,29972,29973,29973,29970,29975,29977,29977,29978,29978,29978,29982,29979,29982,29983,29983,29984,29987,29988]} 1. e4 {[%emt 0:00:02]} e5 {[%emt 0:00:01]} 2. Nf3 {[%emt 0:00:02]} Nc6 {[%emt 0:00:01]} 3. d4 {[%emt 0:00:02]} exd4 {[%emt 0:00:01]} 4. Nxd4 {[%emt 0:00:02]} Nf6 {[%emt 0:00:01]} 5. Nxc6 {[%emt 0:00:02]} bxc6 {[%emt 0:00:01]} 6. Nd2 {[%emt 0:00:01]} d6 {[%emt 0:00:07]} 7. Bd3 {[%emt 0:00:11]} g6 {[%emt 0:00:08]} 8. b3 {[%emt 0:00:02]} Bg7 {[%emt 0:00:01][%cal Of6d5]} 9. Bb2 {[%emt 0:00:01]} O-O {[%emt 0:00:02]} 10. O-O {[%emt 0:00:10]} d5 {[%emt 0:00:02]} 11. e5 {[%emt 0:00:29]} Ng4 {[%emt 0:00:19]} 12. Nf3 {[%emt 0:00:04]} c5 {[%emt 0:00:08]} (12... f6 $14) 13. h3 $16 {[%emt 0:00:08]} Nh6 {[%emt 0:00:01]} 14. Re1 {[%emt 0:00:06]} (14. Ba3 $142) 14... Nf5 {[%emt 0:00:04]} ({Black should play} 14... Re8) 15. Qd2 {[%emt 0:00:05]} ({Better is} 15. Ba3 $16) 15... c6 {[%emt 0:00:16]} (15... Re8 $1 $14) 16. Ba3 {[%emt 0:00:11] White is more active.} Re8 {[%emt 0:00:26]} 17. Bxc5 {[%emt 0:00:03]} Nh4 {[%emt 0:00:18]} (17... Bh6 $16 18. Qc3 Ng7) 18. Nxh4 {[%emt 0:00:26]} (18. Nd4 $18) 18... Qxh4 {[%emt 0:00:01]} 19. Bd6 {[%emt 0:00:15]} Bd7 {[%emt 0:00:01]} 20. f4 {[%emt 0:00:11]} Bh6 {[%emt 0:00:07]} 21. Rf1 $36 {[%emt 0:00:02][%mdl 2048] Keeping Black busy.} f6 {[%emt 0:00:03]} 22. Qe1 {[%emt 0:00:21]} Qxe1 {[%emt 0:00:18]} 23. Raxe1 {[%emt 0:00:02]} Kf7 {[%emt 0:00:06] Black is weak on the dark squares} (23... fxe5 $16 24. fxe5 (24. Bxe5 Bg7 $16) 24... a5) 24. g4 {[%emt 0:00:07]} f5 {[%emt 0:00:12]} 25. gxf5 {[%emt 0:00:10]} gxf5 {[%emt 0:00:01]} (25... Bxf5 26. Bxf5 gxf5) 26. Kg2 {[%emt 0:00:01][%cal Bg1g2,Bg2f3,Bf3e3][%mdl 32]} Rg8+ {[%emt 0:00:04]} 27. Kf3 {[%emt 0:00:01]} Ke6 {[%emt 0:00:01]} (27... Rg6 28. Ke3 Rg3+ 29. Kd4 Rag8) 28. Rg1 $18 {[%emt 0:00:05]} Rxg1 {[%emt 0:00:14]} 29. Rxg1 {[%emt 0:00:01]} Be8 {[%emt 0:00:01]} 30. Ke3 {[%emt 0:00:06]} Bg6 {[%emt 0:00:03]} 31. Bc5 {[%emt 0:00:08]} a5 {[%emt 0:00:06]} 32. a4 {[%emt 0:00:01]} Rb8 {[%emt 0:00:03]} 33. Be2 {[%emt 0:00:11]} Rd8 {[%emt 0:00:06][%cal Od5d4]} 34. c3 {[%emt 0:00:04][%cal Bc2c3,Bc3b4][%mdl 32]} Rb8 {[%emt 0:00:15]} 35. Rb1 {[%emt 0:00:02]} Bf7 {[%emt 0:00:06]} (35... Ra8 {is a better defense.} 36. b4 axb4 37. Rxb4 Kd7) 36. b4 {[%emt 0:00:08]} axb4 {[%emt 0:00:01]} 37. cxb4 {[%emt 0:00:03]} Rg8 {[%emt 0:00:00]} 38. a5 {[%emt 0:00:07]} Rg3+ {[%emt 0:00:02]} 39. Bf3 {[%emt 0:00:03]} Bh5 {[%emt 0:00:00]} 40. Rf1 {[%emt 0:00:01]} Rxh3 {[%emt 0:00:06]} (40... Kd7 $142 41. a6 Kc7) 41. a6 {[%emt 0:00:01] aiming for a7.} Bxf3 {[%emt 0:00:06]} 42. Rxf3 {[%emt 0:00:01][%mdl 4096] Endgame KRB-KRB} Rh1 {[%emt 0:00:02]} 43. a7 {[%emt 0:00:01]} Ra1 {[%emt 0:00:03]} 44. Rh3 {[%emt 0:00:03]} Ra3+ {[%emt 0:00:08]} 45. Ke2 {[%emt 0:00:01]} (45. Kd4 $142 Ra1 46. Rxh6+ Kd7 47. Rxh7+ Kd8 48. Bb6+ Ke8 49. Ba5 c5+ 50. Kxd5 (50. Kxc5 Rc1+ 51. Kd6 Rc8 52. Rh8+ Kf7 53. Rxc8 Kg7 54. a8=Q Kh7 55. Rh8+ Kg7 56. Qg8#) 50... Rd1+ 51. Ke6 (51. Kxc5 Rc1+ 52. Kb6 Rc8 53. Kb7 Ra8 54. Kxa8 Kf8 55. Kb7 Kg8 56. Rc7 Kh8 57. a8=Q#) 51... Rd6+ 52. Kxd6 cxb4 53. a8=Q#) 45... Ra2+ {[%emt 0:00:01]} 46. Kd1 {[%emt 0:00:01]} Bxf4 {[%emt 0:00:01]} 47. Rxh7 {[%emt 0:00:03][%csl Gc5][%cal Rh7e7]} Bxe5 {[%emt 0:00:02]} 48. Re7+ {[%emt 0:00:03]} Kf6 {[%emt 0:00:02][%cal Oe5d4]} 49. Re8 {[%emt 0:00:01]} Ra1+ {[%emt 0:00:06]} 50. Kc2 {[%emt 0:00:05]} Ra2+ {[%emt 0:00:00]} 51. Kb3 {[%emt 0:00:02]} Rb2+ {[%emt 0:00:08]} 52. Ka3 {[%emt 0:00:00]} Rb1 {[%emt 0:00:01]} 53. a8=Q {[%emt 0:00:09]} ({Not} 53. Be7+ Kf7 54. Bd8 Bd4 (54... Kxe8 $2 {perishes.} 55. Ba5 $18) 55. Re7+ (55. a8=Q $2 Ra1+ 56. Kb3 Rxa8 $19) 55... Kg6 $16) 53... Ra1+ {[%emt 0:00:01]} 54. Kb3 {[%emt 0:00:00]} Rxa8 {[%emt 0:00:01]} 55. Rxa8 {[%emt 0:00:00]} f4 {[%emt 0:00:01][%cal Bf5f4,Bf4f3][%mdl 32]} 56. Rf8+ {[%emt 0:00:00]} Kg5 {[%emt 0:00:01]} 57. Kc2 {[%emt 0:00:00]} Kg4 {[%emt 0:00:00]} 58. Kd3 {[%emt 0:00:00]} f3 {[%emt 0:00:01]} 59. Bf2 {[%emt 0:00:06]} Bf4 {[%emt 0:00:01]} 60. Rc8 {[%emt 0:00:03]} Kh3 {[%emt 0:00:01]} 61. Rxc6 {[%emt 0:00:01]} Kg2 {[%emt 0:00:00]} 62. Rc2 {[%emt 0:00:01]} Kf1 {[%emt 0:00:02]} 63. b5 {[%emt 0:00:02]} 1-0

[Event "European Women Blitz-ch 2024"]
[Site "Monaco"]
[Date "2025.01.10"]
[Round "10.4"]
[White "Rudzinska, Michalina"]
[Black "Paehtz, Elisabeth"]
[Result "0-1"]
[Annotator "TA"]
[ECO "B33"]
[WhiteElo "2226"]
[BlackElo "2428"]
[PlyCount "60"]
[EventDate "2025.01.06"]
[EventType "swiss"]
[EventCountry "MNC"]
[SourceTitle "playchess.com"]
[Source "ChessBase"]
[SourceQuality "1"]
[TimeControl "180+2"]

{[%evp 16,60,48,46,41,13,51,33,23,20,11,-27,32,20,28,-58,0,-71,-77,-187,-161,-472,-466,-445,-129,-404,-379,-656,-666,-672,-651,-659,-675,-658,-660,-666,-656,-1018,-1024,-1804,-1842,-1839,-1825,-29988,-29989,-29990,-1008]} 1. e4 {[%emt 0:00:01]} c5 {[%emt 0:00:01]} 2. Nf3 {[%emt 0:00:02]} Nc6 {[%emt 0:00:00]} 3. d4 {[%emt 0:00:01]} cxd4 {[%emt 0:00:01]} 4. Nxd4 {[%emt 0:00:01]} Qb6 {[%emt 0:00:01]} 5. Nb3 {[%emt 0:00:02]} Nf6 {[%emt 0:00:02]} 6. Nc3 {[%emt 0:00:02]} e6 {[%emt 0:00:01]} 7. Bd3 {[%emt 0:00:05]} a6 {[%emt 0:00:02]} 8. O-O {[%emt 0:00:03]} d6 {[%emt 0:00:01]} 9. a4 {[%emt 0:00:01][%cal Ba2a4,Ba4a5][%mdl 32]} Be7 {[%emt 0:00:05]} 10. Kh1 {[%emt 0:00:05]} Ne5 {[%emt 0:00:03]} 11. a5 {[%emt 0:00:05]} Qc7 {[%emt 0:00:02]} 12. Be3 {[%emt 0:00:08]} Bd7 {[%emt 0:00:10]} 13. Na4 {[%emt 0:00:09]} Bc6 {[%emt 0:00:11]} (13... Bxa4 $11 14. Rxa4 Qc6) 14. Nb6 $14 {[%emt 0:00:05]} Rd8 {[%emt 0:00:05][%cal Od6d5]} 15. f3 {[%emt 0:00:26]} (15. f4 $1 $11 Ned7 16. Nxd7 Nxd7 17. Nd4) 15... O-O {[%emt 0:00:05]} (15... d5 $15 16. Qe2 dxe4 17. fxe4 h5 (17... Bxe4 18. Bf4 $15) (17... Nxe4 18. Bf4 $11)) 16. c4 {[%emt 0:00:26]} (16. f4 $11 {remains equal.} Ng6 17. Nd2) 16... d5 $17 {[%emt 0:00:11]} 17. cxd5 {[%emt 0:00:03]} (17. exd5 $17 exd5 18. c5) 17... exd5 $19 {[%emt 0:00:01]} 18. Bf4 $2 {[%emt 0:00:53]} (18. exd5 Nxd5 19. Bd4 Nxd3 20. Qxd3) 18... dxe4 {[%emt 0:00:08]} 19. fxe4 {[%emt 0:00:01]} Bd6 $2 {[%emt 0:00:21]} (19... Rxd3 20. Qxd3 Nxd3 21. Bxc7 $15) (19... Bxe4 $19 {is more deadly.} 20. Rc1 Qb8) 20. Bc2 $2 {[%emt 0:00:13][%mdl 8192]} (20. Bg5 $17 {was the only defense.}) 20... Neg4 {[%emt 0:00:06]} ({Not} 20... Bxe4 21. Bxe4 Nxe4 22. Qe2 $17) (20... Nxe4 21. Qe2 Nf6 22. Nd4 $19) 21. Bxd6 $2 {[%emt 0:00:14]} (21. Bg5 Bxh2 (21... Bxe4 $2 22. Bxe4 Bb4 23. Bxh7+ Kxh7 24. Qb1+ Kh8 25. Bf4 $17) (21... Bc5 $2 22. Bf4 $19) 22. Qf3) 21... Rxd6 {[%emt 0:00:01]} (21... Qxd6 22. Qxd6 Rxd6 23. Rae1 Bxe4 24. Bxe4 $19) 22. Qf3 {[%emt 0:00:04] [#]} Rd2 $1 {[%emt 0:00:08][%csl Gg4][%cal Rc7h2][%mdl 512]} 23. Qf4 {[%emt 0:00:26]} Qxf4 {[%emt 0:00:02]} 24. Rxf4 {[%emt 0:00:01]} Rxc2 {[%emt 0:00:01]} 25. Nd4 {[%emt 0:00:04]} Rxb2 {[%emt 0:00:09]} 26. Nf5 {[%emt 0:00:01]} Bxe4 {[%emt 0:00:12]} 27. h3 {[%emt 0:00:11]} Bxg2+ {[%emt 0:00:13]} 28. Kg1 {[%emt 0:00:01]} Bxh3 {[%emt 0:00:06] ( -> ...Rg2+)} 29. Rc1 {[%emt 0:00:02]} Rg2+ {[%emt 0:00:03]} 30. Kh1 {[%emt 0:00:03]} Nf2+ {[%emt 0:00:03]} (30... Ne4 $142 31. Rc2 Rxc2 32. Rxg4 Bxg4 33. Kg1 Bxf5 34. Nd5 Rd8 (34... Rc1+ {leads to mate.} 35. Kg2 Re8 36. Ne3 Ng5 37. Kf2 Nh3+ 38. Kf3 Rc3 39. Kg2 Rexe3 40. Kf1 Bd3+ 41. Kg2 Be4+ 42. Kh2 Re2#) 35. Ne3 Re2 (35... Rc1+ 36. Kh2 Rd3 37. Nf1 Rxf1 38. Kg2 Rf2+ 39. Kh1 Rd1#) 36. Ng2 Rdd2 (36... Rd1+ 37. Kh2 Rdd2 38. Kg1 Rxg2+ 39. Kf1 Ng3+ 40. Ke1 Rge2#) 37. Kh2 Rxg2+ 38. Kh1 Ng3#) 0-1

[Event "European Women Blitz-ch 2024"]
[Site "Monaco"]
[Date "2025.01.10"]
[Round "10.5"]
[White "Atalik, Ekaterina"]
[Black "Kosteniuk, Alexandra"]
[Result "0-1"]
[Annotator "TA"]
[ECO "E40"]
[WhiteElo "2395"]
[BlackElo "2484"]
[PlyCount "60"]
[EventDate "2025.01.06"]
[EventType "swiss"]
[EventCountry "MNC"]
[SourceTitle "playchess.com"]
[Source "ChessBase"]
[SourceQuality "1"]
[TimeControl "180+2"]

{[%evp 10,60,0,0,20,14,15,0,9,0,0,0,0,0,-6,-10,-8,-11,-12,-24,0,-48,2,-30,-23,-55,-31,-44,-34,-32,-34,-69,-66,-66,-27,-42,-43,-68,-72,-147,-149,-154,-148,-189,-152,-235,-231,-770,-685,-890,-881,-29998,-29999]} 1. d4 {[%emt 0:00:01]} Nf6 {[%emt 0:00:01]} 2. c4 {[%emt 0:00:01]} e6 {[%emt 0:00:00]} 3. Nc3 {[%emt 0:00:02]} Bb4 {[%emt 0:00:01]} 4. e3 {[%emt 0:00:01]} d5 {[%emt 0:00:01]} 5. a3 {[%emt 0:00:06]} Bxc3+ {[%emt 0:00:02]} 6. bxc3 {[%emt 0:00:01]} c6 {[%emt 0:00:01]} 7. cxd5 {[%emt 0:00:03]} cxd5 {[%emt 0:00:01]} 8. c4 {[%emt 0:00:03]} O-O {[%emt 0:00:08]} 9. Nf3 {[%emt 0:00:02]} b6 {[%emt 0:00:20]} 10. cxd5 {[%emt 0:00:04]} Qxd5 {[%emt 0:00:08]} 11. Bd3 {[%emt 0:00:05]} Ba6 {[%emt 0:00:11]} 12. O-O {[%emt 0:00:11]} Bxd3 {[%emt 0:00:05]} 13. Qxd3 {[%emt 0:00:01]} Nbd7 {[%emt 0:00:02]} 14. a4 {[%emt 0:00:07]} Nc5 {[%emt 0:00:11]} 15. Qe2 {[%emt 0:00:07]} (15. Qa3 $11 {is more appropriate.} Nb3 16. Rb1) 15... Nce4 {[%emt 0:00:07]} (15... Nb3 $15 16. Ba3 Rfc8) 16. Ba3 {[%emt 0:00:11]} Rfc8 {[%emt 0:00:01]} 17. Be7 {[%emt 0:00:34]} (17. Ne5 Qa5 18. Qd3 Nc3 19. Bb2) 17... Rc7 {[%emt 0:00:30]} 18. Bxf6 {[%emt 0:00:04]} Nxf6 {[%emt 0:01:48][%cal Be4f6,Bf6d5,Bd5c3][%mdl 32]} (18... Nc3 $5 19. Qd3 gxf6 $15) 19. Ne5 {[%emt 0:00:06]} Rac8 {[%emt 0:00:00]} 20. Qa2 {[%emt 0:00:12]} Qxa2 {[%emt 0:00:00]} (20... Rc2 {keeps more tension.} 21. Qa3 R8c3 22. Qb4 Rc7) 21. Rxa2 {[%emt 0:00:01]} Nd5 {[%emt 0:00:00]} 22. a5 {[%emt 0:00:16]} b5 {[%emt 0:00:00]} 23. a6 {[%emt 0:00:08]} Rc2 {[%emt 0:00:00]} 24. Ra5 {[%emt 0:00:13]} ({White should try} 24. Rxc2 Rxc2 25. g3) 24... Nc3 $17 {[%emt 0:00:00]} 25. Nd3 {[%emt 0:00:14]} f6 {[%emt 0:00:00] Black is more active.} 26. h4 {[%emt 0:00:07]} Rc4 {[%emt 0:00:00][%cal Oe6e5]} 27. Nc5 {[%emt 0:00:16]} (27. f3 $17) 27... e5 $19 {[%emt 0:00:00]} 28. Nd7 $2 {[%emt 0:00:24]} (28. g3) 28... exd4 {[%emt 0:00:00] ...d3 would now be deadly.} 29. exd4 {[%emt 0:00:02]} Rxd4 {[%emt 0:00:00] ( -> ...Ne2+)} 30. Nb8 {[%emt 0:00:01]} Ne2+ {[%emt 0:00:00]} 0-1

[Event "European Women Blitz-ch 2024"]
[Site "Monaco"]
[Date "2025.01.10"]
[Round "10.6"]
[White "Vega Gutierrez, Sabrina"]
[Black "Khotenashvili, Bella"]
[Result "0-1"]
[Annotator "TA"]
[ECO "B12"]
[WhiteElo "2393"]
[BlackElo "2420"]
[PlyCount "51"]
[EventDate "2025.01.06"]
[EventType "swiss"]
[EventCountry "MNC"]
[SourceTitle "playchess.com"]
[Source "ChessBase"]
[SourceQuality "1"]
[TimeControl "180+2"]

{[%evp 9,51,11,18,0,43,49,54,47,81,0,0,-39,-14,-82,-83,-109,-121,-135,-137,-144,-137,-143,-127,-141,-123,-166,-156,-172,-170,-179,-175,-227,-209,-217,-195,-397,-391,-384,-396,-402,-389,-947,-914,-29970]} 1. e4 {[%emt 0:00:01]} c6 {[%emt 0:00:00]} 2. d4 {[%emt 0:00:02]} d5 {[%emt 0:00:05]} 3. f3 {[%emt 0:00:01]} g6 {[%emt 0:00:04]} 4. e5 {[%emt 0:00:05]} Nh6 {[%emt 0:00:05]} 5. Nc3 {[%emt 0:00:02]} f6 {[%emt 0:00:43]} 6. f4 {[%emt 0:00:12]} Bg4 {[%emt 0:00:03]} 7. Be2 {[%emt 0:00:25]} Bxe2 {[%emt 0:00:12]} 8. Qxe2 {[%emt 0:00:27] White is slightly better.} f5 {[%emt 0:00:03]} 9. e6 {[%emt 0:00:23]} (9. Nf3 $16) 9... Qd6 $11 {[%emt 0:00:11]} 10. Nf3 {[%emt 0:00:03]} Na6 {[%emt 0:00:08][%cal Bb8a6,Ba6c7,Bc7e8,Be8f6,Bf6e4][%mdl 32]} 11. a3 {[%emt 0:00:22]} (11. h3 $11) 11... Nc7 $17 {[%emt 0:00:02] Black continues to play with concentration.} 12. Ng5 {[%emt 0:00:03]} Bg7 {[%emt 0:00:07]} 13. Nf7 {[%emt 0:01:12] Prevents Bxd4} Nxf7 {[%emt 0:00:10]} (13... Qxe6 14. Nxh8 Bxd4 15. Nxg6 hxg6 16. Qxe6 Nxe6 17. Ne2) 14. exf7+ {[%emt 0:00:01]} Kxf7 {[%emt 0:00:01]} 15. Be3 {[%emt 0:00:02]} Ne8 {[%emt 0:00:05]} 16. g4 {[%emt 0:00:05]} e6 {[%emt 0:00:09]} 17. O-O-O {[%emt 0:00:02]} Nf6 {[%emt 0:00:01]} 18. h3 {[%emt 0:00:02]} b5 {[%emt 0:00:08]} 19. Na2 {[%emt 0:00:03]} a5 {[%emt 0:00:07] Prevents Nb4.} 20. Rhf1 {[%emt 0:00:03]} (20. Qd3 {was necessary.}) 20... Ne4 $19 {[%emt 0:00:06]} 21. Kb1 {[%emt 0:00:01]} Rhb8 {[%emt 0:00:09] Threatens to win with ...b4.} 22. Rf3 $2 {[%emt 0:00:02] [#]} (22. Qd3) 22... b4 {[%emt 0:00:02]} 23. a4 {[%emt 0:00:04]} b3 {[%emt 0:00:01]} 24. cxb3 {[%emt 0:00:01]} Rxb3 {[%emt 0:00:01]} 25. Qc2 $2 {[%emt 0:00:03]} (25. Bc1 Rxf3 26. Qxf3) 25... Rab8 {[%emt 0:00:02] [#] Hoping for ...Qa3.} 26. Nc1 {[%emt 0:00:04] Weighted Error Value: White=0.62/Black=0.08 (flawless) .  Mistake:       	White=5     	---        Inaccurate:     	White=4     	Black=2      OK:         	White=6     	Black=11     Best:        	---       	Black=2} 0-1

[Event "European Women Blitz-ch 2024"]
[Site "Monaco"]
[Date "2025.01.10"]
[Round "10.7"]
[White "Hunt, Harriet V"]
[Black "Arabidze, Meri"]
[Result "0-1"]
[Annotator "TA"]
[ECO "B40"]
[WhiteElo "2298"]
[BlackElo "2457"]
[PlyCount "66"]
[EventDate "2025.01.06"]
[EventType "swiss"]
[EventCountry "MNC"]
[SourceTitle "playchess.com"]
[Source "ChessBase"]
[SourceQuality "1"]
[TimeControl "180+2"]

{[%evp 9,66,12,14,-41,-44,-123,-113,-255,-276,-266,-254,-392,-366,-403,-395,-373,-371,-374,-357,-357,-365,-365,-309,-410,-405,-533,-533,-542,-454,-554,-559,-540,-537,-680,-687,-679,-686,-739,-731,-725,-668,-775,-784,-818,-806,-798,-775,-848,-634,-812,-691,-2487,-2176,-2134,-1822,-6287,-5569,-29988,-29972]} 1. e4 {[%emt 0:00:01]} c5 {[%emt 0:00:00]} 2. Nf3 {[%emt 0:00:01]} e6 {[%emt 0:00:01]} 3. b3 {[%emt 0:00:01]} a6 {[%emt 0:00:02]} 4. Bb2 {[%emt 0:00:01]} Nc6 {[%emt 0:00:01]} 5. c4 {[%emt 0:00:05]} Qc7 {[%emt 0:00:01]} 6. d4 {[%emt 0:00:06]} (6. g3 $11) 6... cxd4 $15 {[%emt 0:00:02]} 7. Nxd4 {[%emt 0:00:01]} ({White should play} 7. Bxd4 $15 Nxd4 8. Qxd4) 7... Qe5 $17 {[%emt 0:00:03]} 8. Qd2 {[%emt 0:00:35]} (8. Bc3 $17 {is a better defense.}) 8... Bb4 $19 {[%emt 0:00:21]} ({Weaker is} 8... Qxe4+ 9. Ne2 $15) 9. Nc3 {[%emt 0:00:08]} Qxd4 {[%emt 0:00:06]} (9... Nxd4 10. O-O-O Nc6 11. a3 $17) 10. Qc2 {[%emt 0:00:03]} (10. Qxd4 $142 Nxd4 11. O-O-O) 10... Nf6 {[%emt 0:00:16]} 11. Bd3 {[%emt 0:00:11]} Ne5 {[%emt 0:00:07]} 12. O-O-O {[%emt 0:00:16]} Bxc3 {[%emt 0:00:48]} 13. Bxc3 {[%emt 0:00:01]} Nxd3+ {[%emt 0:00:02]} 14. Rxd3 {[%emt 0:00:02]} Qxe4 {[%emt 0:00:06]} 15. Re1 {[%emt 0:00:16]} Qf5 {[%emt 0:00:04]} ({Don't take} 15... Qxg2 16. Rg3 Qxh2 17. Kb1 $19) 16. Qd2 {[%emt 0:00:19]} Ne4 {[%emt 0:00:21]} 17. Qc2 {[%emt 0:00:13]} Nxc3 {[%emt 0:00:03]} 18. Qxc3 {[%emt 0:00:03]} Qf6 {[%emt 0:00:13]} 19. Rd4 {[%emt 0:00:18]} O-O {[%emt 0:00:02][%cal Ob7b5]} 20. Qd2 {[%emt 0:00:03] [#]} d5 $1 {[%emt 0:00:03]} 21. Kb1 {[%emt 0:00:11]} (21. Qf4 Qxf4+) 21... dxc4 {[%emt 0:00:05]} 22. Rxc4 {[%emt 0:00:01]} e5 {[%emt 0:00:01] Prevents Qf4} 23. g4 {[%emt 0:00:12]} Be6 {[%emt 0:00:03]} 24. Rce4 {[%emt 0:00:02]} Rfd8 {[%emt 0:00:01]} 25. Qb2 {[%emt 0:00:03]} h6 {[%emt 0:00:07]} 26. Rxe5 {[%emt 0:00:12]} Bxg4 {[%emt 0:00:13]} 27. Ka1 {[%emt 0:00:05]} Bf5 {[%emt 0:00:10]} 28. f4 {[%emt 0:00:06]} Kh7 {[%emt 0:00:09]} 29. a3 {[%emt 0:00:01]} Rd7 {[%emt 0:00:04]} 30. R1e2 {[%emt 0:00:03]} Rad8 {[%emt 0:00:01]} 31. Ka2 {[%emt 0:00:01]} Rd1 {[%emt 0:00:02]} 32. a4 {[%emt 0:00:04] [#]} b5 $1 {[%emt 0:00:03] White must now prevent ...bxa4.} 33. a5 {[%emt 0:00:03]} (33. Rxb5 Bb1+) 33... b4 {[%emt 0:00:02]} 0-1